bitfinex/quotes_SOLUSD_20220129
["timestamp","ask_amount","ask_price","bid_price","bid_amount"]
[1643459689335,0.25,96.929,96.823,0.25]
[1643459689535,6.0,96.926,96.821,24.2803]
[1643459689933,6.0,96.919,96.821,24.2803]
[1643459690436,0.25,96.918,96.821,24.2803]
[1643459690833,0.25,96.918,96.822,0.25]
[1643459691535,6.0,96.91,96.822,0.25]
[1643459691937,6.0,96.904,96.821,24.2803]
[1643459692636,6.0,96.91,96.821,24.2803]
[1643459692934,0.25,96.909,96.821,24.2803]
[1643459693137,6.0,96.901,96.821,24.2803]
[1643459693338,0.25,96.9,96.822,0.25]
[1643459694436,0.25,96.908,96.822,0.25]
[1643459694837,15.491,96.92,96.831,6.0]
[1643459695243,15.491,96.92,96.822,0.25]
[1643459695244,6.0,96.91,96.832,0.25]
[1643459695439,34.1206781,96.909,96.822,0.25]
[1643459695740,48.0128,96.949,96.822,0.25]
[1643459695741,1.43522659,96.933,96.833,2.76955648]
[1643459695965,1.43522659,96.94,96.84,12.4]
[1643459696137,1.43522659,96.94,96.843,6.0]
[1643459696338,1.43522659,96.942,96.85,6.0]
[1643459696638,1.43522659,96.939,96.851,6.0]
[1643459696838,1.43522659,96.939,96.851,0.25]
[1643459697238,0.25,96.938,96.851,0.25]
[1643459697440,1.43522659,96.934,96.851,0.25]
[1643459697838,1.43522659,96.936,96.851,0.25]
[1643459698039,1.43522659,96.94,96.851,0.25]
[1643459698242,37.92387943,96.941,96.851,0.25]
[1643459698738,1.43522659,96.943,96.851,103.95]
[1643459698944,1.43522659,96.944,96.852,131.07615648]
[1643459699139,1.43522659,96.95,96.861,6.0]
[1643459699341,1.43522659,96.949,96.862,6.25]
[1643459699538,2.85858309,96.989,96.862,6.25]
[1643459699539,6.0,96.939,96.862,0.25]
[1643459699939,6.0,96.939,96.863,6.0]
[1643459700238,27.41725875,97.006,96.863,6.0]
[1643459700239,1.43522659,96.958,96.864,0.25]
[1643459700439,1.43522659,96.958,96.87,12.4]
[1643459700640,1.43522659,96.96,96.871,103.7]
[1643459700845,24.3944,97.005,96.88,6.0]
[1643459700846,0.25,96.959,96.88,6.0]
[1643459701040,0.25,96.959,96.881,6.0]
[1643459701244,6.0,96.958,96.87,12.4]
[1643459701441,6.0,96.958,96.864,22.8214]
[1643459701642,0.25,96.957,96.872,2.7698178]
[1643459701844,0.25,96.959,96.872,2.7698178]
[1643459702043,0.25,96.959,96.88,12.4]
[1643459702846,0.25,96.966,96.881,0.25]
[1643459703043,0.25,96.966,96.88,12.4]
[1643459703044,6.0,96.957,96.88,12.4]
[1643459703475,1.43522659,96.972,96.88,12.4]
[1643459703671,6.0,96.962,96.89,6.0]
[1643459703874,1.43522659,96.98,96.891,103.7]
[1643459704071,1.43522659,96.979,96.891,109.7]
[1643459704274,6.0,96.97,96.892,0.25]
[1643459704471,6.0,96.97,96.882,0.25]
[1643459704671,6.0,96.97,96.881,0.25]
[1643459704873,1.43522659,96.977,96.881,0.25]
[1643459705073,0.25,96.969,96.881,0.25]
[1643459705275,1.68522659,96.976,96.881,0.25]
[1643459705674,6.0,96.966,96.881,0.25]
[1643459705872,0.25,96.965,96.881,0.25]
[1643459706077,6.0,96.964,96.881,0.25]
[1643459706275,41.46309332,96.963,96.881,0.25]
[1643459706474,6.0,96.962,96.881,0.25]
[1643459706676,1.43522659,96.974,96.881,0.25]
[1643459706877,1.43522659,96.996,96.89,6.0]
[1643459707078,1.88328689,97.011,96.9,12.4]
[1643459707275,0.4480603,97.011,96.902,103.7]
[1643459707480,0.08818008,96.905,96.902,103.7]
[1643459707776,0.17636016,96.905,96.903,3.02808938]
[1643459708179,0.17636016,96.905,96.901,23.0995]
[1643459708376,0.17636016,96.905,96.88,12.4]
[1643459708580,0.35272032,96.905,96.86,12.4]
[1643459709077,0.35272032,96.905,96.86,15.17808938]
[1643459709477,0.35272032,96.905,96.87,6.0]
[1643459709677,0.35272032,96.905,96.87,18.4]
[1643459709877,0.35272032,96.905,96.871,0.25]
[1643459711084,0.35272032,96.905,96.872,6.0]
[1643459711284,0.35272032,96.905,96.86,18.25808938]
[1643459711285,0.35272032,96.905,96.85,12.4]
[1643459711481,0.35272032,96.905,96.84,18.26108938]
[1643459711680,0.35272032,96.905,96.872,2.77808938]
[1643459711883,0.35272032,96.905,96.842,103.7]
[1643459712187,0.35272032,96.905,96.84,15.483]
[1643459712582,0.35272032,96.905,96.866,6.0]
[1643459712783,0.35272032,96.905,96.867,0.25]
[1643459712983,0.35272032,96.905,96.866,2.77808938]
[1643459713187,0.35272032,96.905,96.868,2.77808938]
[1643459713382,0.35272032,96.905,96.869,0.25]
[1643459713586,0.35272032,96.905,96.878,6.0]
[1643459713984,0.35272032,96.905,96.879,0.25]
[1643459714185,0.35272032,96.905,96.879,3.02808938]
[1643459714385,0.35272032,96.905,96.88,2.77808938]
[1643459714788,9.89,96.954,96.881,0.25]
[1643459714987,9.89,96.954,96.891,103.7]
[1643459715189,9.89,96.954,96.89,18.4]
[1643459715389,9.89,96.954,96.891,0.25]
[1643459716090,9.89,96.954,96.86,12.4]
[1643459716290,6.0,96.944,96.859,1.43769799]
[1643459716489,5.5,96.944,96.829,1.43769799]
[1643459716690,0.25,96.943,96.821,1.43769799]
[1643459716889,0.25,96.943,96.818,1.43769799]
[1643459717289,0.25,96.943,96.818,4.21578737]
[1643459717490,0.25,96.943,96.828,6.0]
[1643459717690,0.25,96.943,96.807,1.43769799]
[1643459717691,0.32047969,96.932,96.807,1.43769799]
[1643459717892,0.31534115,96.904,96.799,1.43769799]
[1643459718293,0.31534115,96.904,96.796,46.9626]
[1643459718294,2.95669142,96.903,96.796,46.9626]
[1643459718493,6.0,96.893,96.793,1.43769799]
[1643459718698,16.59,96.893,96.79,1.43769799]
[1643459718896,9.20669142,96.892,96.788,1.43769799]
[1643459719193,9.20669142,96.892,96.77,12.4]
[1643459719194,46.19019558,96.882,96.796,0.25]
[1643459719394,0.25,96.881,96.798,6.0]
[1643459719594,6.0,96.872,96.796,6.0]
[1643459719794,0.25,96.871,96.797,0.25]
[1643459720793,46.9892,96.909,96.797,0.25]
[1643459720997,1.43522659,96.924,96.8,12.4]
[1643459721195,26.99737894,96.951,96.8,12.4]
[1643459721196,1.43522659,96.936,96.8,12.4]
[1643459721403,15.489,96.94,96.811,103.7]
[1643459721596,15.489,96.94,96.821,6.0]
[1643459721597,6.0,96.93,96.821,6.0]
[1643459721793,44.51975381,96.929,96.821,6.0]
[1643459721994,6.0,96.925,96.801,47.0208]
[1643459722294,6.0,96.919,96.801,47.0208]
[1643459722494,6.0,96.918,96.801,47.0208]
[1643459722693,6.25,96.918,96.801,47.0208]
[1643459722895,9.20669142,96.918,96.801,47.0208]
[1643459723095,33.38131925,96.913,96.801,47.0208]
[1643459723300,0.25,96.912,96.801,47.0208]
[1643459723496,6.0,96.903,96.801,47.0208]
[1643459723898,6.25,96.902,96.801,47.0208]
[1643459724096,0.25,96.902,96.801,47.0208]
[1643459724595,0.25,96.902,96.811,6.0]
[1643459724797,0.25,96.902,96.812,0.25]
[1643459724996,0.25,96.902,96.812,6.25]
[1643459725196,0.25,96.902,96.813,23.8166]
[1643459725397,0.25,96.912,96.814,0.25]
[1643459725796,0.25,96.912,96.814,103.95]
[1643459726898,6.0,96.903,96.814,103.95]
[1643459727101,6.0,96.903,96.824,6.0]
[1643459727308,0.25,96.902,96.82,12.4]
[1643459727503,0.25,96.902,96.813,23.8166]
[1643459728602,6.0,96.903,96.813,23.8166]
[1643459729402,6.0,96.903,96.814,0.25]
[1643459729826,0.25,96.902,96.813,23.8166]
[1643459730226,0.25,96.902,96.814,0.25]
[1643459731426,0.25,96.902,96.82,6.0]
[1643459731827,0.25,96.902,96.821,0.25]
[1643459732628,0.25,96.902,96.821,6.25]
[1643459733229,0.25,96.912,96.821,6.25]
[1643459733428,2.95669142,96.933,96.821,6.25]
[1643459733629,1.43522659,96.948,96.821,6.25]
[1643459733831,0.25,96.932,96.822,103.7]
[1643459734029,0.25,96.932,96.832,6.0]
[1643459734429,0.25,96.932,96.833,49.5414]
[1643459734830,0.25,96.939,96.833,49.5414]
[1643459735030,0.25,96.939,96.843,6.0]
[1643459735535,0.25,96.94,96.844,0.25]
[1643459736031,6.0,96.941,96.85,6.0]
[1643459736231,6.0,96.952,96.85,6.0]
[1643459736630,6.0,96.955,96.851,0.25]
[1643459736834,2.95669142,96.951,96.851,0.25]
[1643459737033,6.0,96.941,96.851,0.25]
[1643459737439,0.25,96.94,96.851,0.25]
[1643459737639,0.25,96.94,96.85,6.0]
[1643459737640,3.20669142,96.94,96.85,6.0]
[1643459737937,2.95669142,96.939,96.833,49.2914]
[1643459738137,41.26997171,96.928,96.833,49.2914]
[1643459738338,0.25,96.927,96.814,1.43769799]
[1643459738536,0.25,96.927,96.79,12.4]
[1643459738537,6.0,96.918,96.803,1.43769799]
[1643459738736,6.0,96.918,96.802,1.43769799]
[1643459738940,6.25,96.917,96.8,6.0]
[1643459739138,41.23691094,96.906,96.8,6.0]
[1643459739341,6.0,96.896,96.799,1.43769799]
[1643459739542,6.0,96.896,96.792,1.43769799]
[1643459739739,0.25,96.895,96.801,6.0]
[1643459739939,9.20669142,96.895,96.791,24.98539799]
[1643459740339,9.20669142,96.895,96.791,23.5477]
[1643459740742,9.20669142,96.895,96.792,0.25]
[1643459740940,0.25,96.895,96.801,6.0]
[1643459741146,0.25,96.895,96.796,1.43769799]
[1643459741340,0.25,96.895,96.799,0.25]
[1643459742341,0.25,96.895,96.791,23.5477]
[1643459742342,0.25,96.895,96.796,0.25]
[1643459742739,0.25,96.895,96.795,1.68769799]
[1643459743141,0.25,96.895,96.795,0.25]
[1643459743340,0.25,96.895,96.792,0.25]
[1643459743941,0.25,96.895,96.792,1.68769799]
[1643459744241,38.36514504,96.889,96.792,0.25]
[1643459744640,0.25,96.888,96.792,1.68769799]
[1643459745041,6.0,96.879,96.792,0.25]
[1643459745243,0.25,96.878,96.804,1.43769799]
[1643459745442,0.25,96.878,96.805,1.43769799]
[1643459745843,0.25,96.878,96.806,0.25]
[1643459746843,0.25,96.878,96.805,0.25]
[1643459747243,0.25,96.888,96.804,0.25]
[1643459747444,0.25,96.888,96.805,1.43769799]
[1643459747646,6.0,96.879,96.805,1.43769799]
[1643459747844,0.25,96.878,96.806,0.25]
[1643459748849,0.25,96.878,96.804,0.25]
[1643459749346,0.25,96.878,96.791,23.5477]
[1643459749347,0.25,96.878,96.803,1.68769799]
[1643459749945,0.25,96.878,96.803,0.25]
[1643459750148,0.25,96.878,96.803,1.68769799]
[1643459750346,0.25,96.878,96.803,0.25]
[1643459750747,0.25,96.878,96.801,1.43769799]
[1643459750947,0.25,96.878,96.802,0.25]
[1643459751148,0.25,96.878,96.8,1.43769799]
[1643459751549,0.25,96.888,96.801,0.25]
[1643459751948,0.25,96.888,96.801,1.68769799]
[1643459752150,0.25,96.888,96.801,0.25]
[1643459752349,6.0,96.879,96.801,0.25]
[1643459752749,0.25,96.878,96.8,0.25]
[1643459752948,15.489,96.94,96.8,12.4]
[1643459753149,1.43522659,96.92,96.813,1.43769799]
[1643459753349,49.3275,96.949,96.801,103.7]
[1643459753350,1.43522659,96.929,96.821,1.43769799]
[1643459753550,1.43522659,96.933,96.831,6.0]
[1643459753748,1.43522659,96.933,96.832,0.25]
[1643459753953,45.86157487,96.932,96.84,6.0]
[1643459754350,45.86157487,96.932,96.846,6.0]
[1643459754551,45.86157487,96.932,96.847,6.0]
[1643459754951,0.25,96.931,96.825,1.43769799]
[1643459755152,0.25,96.931,96.831,0.25]
[1643459756553,6.0,96.922,96.831,0.25]
[1643459756755,0.25,96.921,96.831,0.25]
[1643459757853,6.25,96.921,96.831,0.25]
[1643459758057,0.25,96.921,96.831,0.25]
[1643459758255,0.25,96.921,96.84,6.0]
[1643459758455,0.25,96.921,96.84,18.4]
[1643459758658,0.25,96.921,96.841,0.25]
[1643459758964,45.86157487,96.932,96.841,0.25]
[1643459758965,0.25,96.931,96.841,0.25]
[1643459759158,0.25,96.931,96.841,24.6378]
[1643459759557,45.86157487,96.932,96.841,24.6378]
[1643459760358,45.86157487,96.932,96.851,6.0]
[1643459760757,45.86157487,96.932,96.852,0.25]
[1643459760957,45.77406261,96.932,96.852,0.25]
[1643459761958,0.25,96.931,96.852,0.25]
[1643459762764,6.0,96.922,96.841,24.3878]
[1643459762965,0.25,96.931,96.841,24.3878]
[1643459763165,0.25,96.921,96.842,0.25]
[1643459763490,0.25,96.931,96.851,6.0]
[1643459763691,0.25,96.931,96.842,0.25]
[1643459763997,0.25,96.931,96.851,6.0]
[1643459765391,0.25,96.931,96.833,22.868]
[1643459765590,6.0,96.922,96.833,22.868]
[1643459765791,0.25,96.921,96.822,1.43769799]
[1643459765991,0.30849416,96.913,96.814,1.43769799]
[1643459766190,12.4,96.92,96.772,24.4538]
[1643459766191,12.4,96.92,96.808,1.43769799]
[1643459766390,12.4,96.92,96.806,2.43769799]
[1643459766391,34.16205955,96.909,96.806,2.43769799]
[1643459766791,0.25,96.908,96.806,2.43769799]
[1643459766992,0.25,96.908,96.816,6.0]
[1643459767394,0.25,96.908,96.815,6.0]
[1643459767595,0.25,96.908,96.816,6.0]
[1643459767992,0.25,96.908,96.806,1.0]
[1643459770195,6.0,96.899,96.806,1.0]
[1643459770397,0.25,96.898,96.806,1.0]
[1643459770595,34.16205955,96.909,96.811,6.0]
[1643459770797,34.16205955,96.909,96.815,1.43769799]
[1643459770995,34.16205955,96.909,96.825,6.0]
[1643459771494,34.16205955,96.909,96.826,0.25]
[1643459771695,34.16205955,96.909,96.831,6.0]
[1643459771897,34.16205955,96.909,96.832,0.25]
[1643459772097,34.16205955,96.909,96.832,6.25]
[1643459772397,0.25,96.908,96.832,6.0]
[1643459772596,0.25,96.908,96.833,0.25]
[1643459772999,0.25,96.908,96.83,6.0]
[1643459773398,0.25,96.908,96.831,0.25]
[1643459773997,0.25,96.908,96.834,6.0]
[1643459774696,0.25,96.908,96.84,12.4]
[1643459774898,0.25,96.93,96.841,127.7393]
[1643459775098,0.25,96.93,96.851,6.0]
[1643459775397,24.7063,96.948,96.841,127.7393]
[1643459775398,43.49223483,96.939,96.841,127.7393]
[1643459775608,43.24223483,96.939,96.841,127.7393]
[1643459775997,43.24223483,96.939,96.851,6.0]
[1643459776198,43.24223483,96.939,96.841,24.0393]
[1643459776398,43.24223483,96.939,96.851,6.0]
[1643459776599,43.24223483,96.939,96.841,24.0393]
[1643459776797,0.25,96.938,96.841,24.0393]
[1643459778102,1.68522659,96.938,96.841,24.0393]
[1643459778301,1.43522659,96.937,96.851,6.0]
[1643459778501,1.68522659,96.938,96.852,6.0]
[1643459778702,0.25,96.936,96.852,6.0]
[1643459778901,1.68522659,96.938,96.853,6.0]
[1643459779101,1.68522659,96.938,96.854,22.5915]
[1643459780404,1.43522659,96.935,96.854,22.5915]
[1643459780803,1.68522659,96.934,96.854,22.5915]
[1643459781008,1.43522659,96.93,96.854,22.5915]
[1643459781406,0.25,96.929,96.854,22.5915]
[1643459782006,0.25,96.929,96.853,6.0]
[1643459782206,0.25,96.929,96.803,47.372]
[1643459782408,6.0,96.92,96.803,47.372]
[1643459782604,67.55944213,96.919,96.803,47.372]
[1643459782805,67.80944213,96.919,96.82,1.43769799]
[1643459783006,6.0,96.909,96.817,1.43769799]
[1643459783407,6.25,96.908,96.817,1.43769799]
[1643459783607,0.25,96.908,96.817,1.43769799]
[1643459783805,6.0,96.898,96.817,1.43769799]
[1643459784011,44.60887749,96.897,96.816,1.43769799]
[1643459784207,44.85887749,96.897,96.813,1.43769799]
[1643459784409,44.85887749,96.897,96.811,1.43769799]
[1643459784608,44.85887749,96.897,96.803,47.372]
[1643459784609,44.85887749,96.897,96.81,1.43769799]
[1643459785108,44.85887749,96.897,96.811,0.25]
[1643459785811,6.0,96.887,96.811,0.25]
[1643459786009,6.0,96.887,96.81,1.43769799]
[1643459786209,3.20669142,96.886,96.798,1.43769799]
[1643459786415,28.94231801,96.886,96.787,1.43769799]
[1643459786709,33.6171121,96.875,96.784,1.43769799]
[1643459787009,33.6171121,96.875,96.753,23.6767]
[1643459787010,6.0,96.865,96.781,1.43769799]
[1643459787209,6.30477239,96.865,96.781,1.43769799]
[1643459787408,6.30477239,96.865,96.77,1.43769799]
[1643459787409,44.82508287,96.859,96.77,1.43769799]
[1643459787609,44.82508287,96.859,96.747,1.43769799]
[1643459787610,6.0,96.849,96.747,1.43769799]
[1643459787810,0.25,96.848,96.742,1.43769799]
[1643459788012,6.0,96.84,96.743,6.0]
[1643459788210,37.21358924,96.839,96.741,1.43769799]
[1643459788412,6.0,96.838,96.742,1.43769799]
[1643459788610,6.0,96.829,96.742,12.94733885]
[1643459788811,0.25,96.828,96.742,12.94733885]
[1643459789010,0.25,96.828,96.741,1.43769799]
[1643459789213,8.95669142,96.827,96.741,1.43769799]
[1643459789410,8.95669142,96.827,96.73,1.43769799]
[1643459789610,3.20669142,96.826,96.733,1.43769799]
[1643459789812,3.20669142,96.826,96.727,1.43769799]
[1643459790011,38.39572595,96.815,96.726,1.43769799]
[1643459790413,0.25,96.814,96.726,1.43769799]
[1643459790614,0.25,96.814,96.727,1.43769799]
[1643459790812,0.25,96.814,96.726,1.43769799]
[1643459791015,0.25,96.814,96.716,22.632]
[1643459791812,38.39572595,96.815,96.716,22.632]
[1643459791813,38.39572595,96.815,96.717,106.71825545]
[1643459792013,38.39572595,96.815,96.73,14.88]
[1643459792215,38.39572595,96.815,96.737,1.43769799]
[1643459792416,38.39572595,96.815,96.74,6.0]
[1643459792616,38.39572595,96.815,96.738,1.68769799]
[1643459792816,38.39572595,96.815,96.738,0.25]
[1643459793817,38.39572595,96.815,96.735,1.43769799]
[1643459794018,38.39572595,96.815,96.734,1.43769799]
[1643459794217,38.39572595,96.815,96.73,14.88]
[1643459794218,0.25,96.814,96.73,14.88]
[1643459797023,38.39572595,96.815,96.73,14.88]
[1643459797247,38.39572595,96.815,96.731,0.25]
[1643459798250,30.383,96.85,96.74,6.0]
[1643459798449,22.6038,96.877,96.741,151.4822]
[1643459798652,22.6038,96.877,96.741,151.7322]
[1643459798851,6.0,96.867,96.751,6.0]
[1643459799046,6.0,96.867,96.752,103.7]
[1643459799247,45.43542783,96.866,96.762,6.0]
[1643459799847,45.43542783,96.866,96.763,0.25]
[1643459800050,0.25,96.865,96.763,6.25]
[1643459800249,0.25,96.865,96.763,6.0]
[1643459800449,0.25,96.865,96.764,6.0]
[1643459800650,6.0,96.856,96.764,6.0]
[1643459800849,6.0,96.856,96.765,0.25]
[1643459801053,45.43542783,96.866,96.765,0.25]
[1643459802951,0.25,96.865,96.765,0.25]
[1643459803954,0.25,96.865,96.764,6.0]
[1643459804152,0.25,96.865,96.754,23.5408]
[1643459804153,6.0,96.856,96.754,23.5408]
[1643459804354,0.25,96.855,96.755,0.25]
[1643459804752,38.91145343,96.849,96.755,0.25]
[1643459805154,0.25,96.848,96.755,0.25]
[1643459806460,6.0,96.839,96.755,0.25]
[1643459806860,0.25,96.838,96.741,23.4601]
[1643459807657,6.0,96.839,96.741,23.4601]
[1643459807959,38.91145343,96.849,96.751,6.0]
[1643459808360,38.91145343,96.849,96.752,0.25]
[1643459808658,38.91145343,96.849,96.751,6.0]
[1643459809062,0.25,96.848,96.75,14.88]
[1643459809361,6.0,96.839,96.75,14.88]
[1643459809959,6.0,96.839,96.751,0.25]
[1643459810159,2.95669142,96.838,96.742,23.881]
[1643459810860,34.17808314,96.827,96.748,1.43769799]
[1643459811260,0.25,96.826,96.749,0.25]
[1643459811462,0.25,96.826,96.747,1.43769799]
[1643459811860,0.25,96.826,96.748,0.25]
[1643459812560,2.95669142,96.825,96.747,1.43769799]
[1643459812760,0.25,96.824,96.742,23.881]
[1643459813165,0.25,96.824,96.743,1.43769799]
[1643459813364,0.25,96.824,96.748,1.43769799]
[1643459813560,0.25,96.824,96.746,1.43769799]
[1643459813761,0.25,96.824,96.747,0.25]
[1643459813966,0.25,96.826,96.747,0.25]
[1643459814267,0.25,96.826,96.746,1.43769799]
[1643459814562,2.95669142,96.825,96.749,1.43769799]
[1643459814762,0.25,96.824,96.754,1.43769799]
[1643459815362,0.25,96.824,96.752,1.43769799]
[1643459815563,0.25,96.824,96.751,1.43769799]
[1643459815963,0.25,96.824,96.752,1.43769799]
[1643459816163,0.25,96.824,96.753,1.43769799]
[1643459816366,0.25,96.824,96.754,1.43769799]
[1643459816564,0.25,96.824,96.753,1.43769799]
[1643459816963,0.25,96.824,96.756,1.43769799]
[1643459817165,0.25,96.824,96.754,1.43769799]
[1643459817364,0.25,96.824,96.753,1.43769799]
[1643459817565,6.0,96.815,96.754,1.43769799]
[1643459817864,0.25,96.814,96.75,1.43769799]
[1643459818063,6.25,96.814,96.75,1.43769799]
[1643459818763,6.25,96.814,96.748,1.43769799]
[1643459819163,6.25,96.814,96.747,1.43769799]
[1643459819564,6.25,96.814,96.748,1.43769799]
[1643459820171,0.25,96.814,96.748,1.43769799]
[1643459820367,0.25,96.822,96.748,1.43769799]
[1643459820765,0.25,96.822,96.749,1.43769799]
[1643459820965,0.25,96.822,96.752,1.43769799]
[1643459821165,0.25,96.823,96.754,1.43769799]
[1643459821565,0.25,96.823,96.755,1.43769799]
[1643459823066,0.25,96.823,96.756,1.43769799]
[1643459823668,2.95669142,96.822,96.755,1.43769799]
[1643459823868,6.0,96.814,96.751,1.43769799]
[1643459824168,33.89868102,96.811,96.752,1.43769799]
[1643459824371,0.25,96.81,96.752,1.43769799]
[1643459824571,6.0,96.801,96.752,1.43769799]
[1643459824770,0.25,96.81,96.751,1.43769799]
[1643459824771,0.25,96.8,96.751,1.43769799]
[1643459824968,0.25,96.8,96.753,1.43769799]
[1643459825169,0.25,96.8,96.749,1.43769799]
[1643459825369,2.95669142,96.799,96.74,1.43769799]
[1643459825572,6.0,96.789,96.736,1.43769799]
[1643459825770,35.74964044,96.788,96.735,1.43769799]
[1643459826169,6.0,96.778,96.735,1.43769799]
[1643459826372,22.5066,96.809,96.8,205.29366814]
[1643459826576,14.88,96.82,96.8,205.29366814]
[1643459827371,43.36736206,96.819,96.8,205.29366814]
[1643459827571,46.32405348,96.819,96.8,166.48175329]
[1643459827772,2.95669142,96.818,96.8,166.48175329]
[1643459828471,6.0,96.808,96.8,166.48175329]
[1643459828871,0.25,96.807,96.8,166.48175329]
[1643459829675,17.52789257,96.81,96.8,166.48175329]
[1643459829873,2.95669142,96.837,96.8,166.48175329]
[1643459830074,15.504,96.84,96.8,166.48175329]
[1643459830873,48.36429929,96.839,96.8,166.48175329]
[1643459831074,6.0,96.83,96.8,166.48175329]
[1643459831473,3.20669142,96.829,96.8,166.48175329]
[1643459831873,2.95669142,96.828,96.8,166.48175329]
[1643459832276,0.25,96.827,96.8,166.48175329]
[1643459832676,2.95669142,96.826,96.8,166.48175329]
[1643459832874,0.25,96.825,96.8,166.48175329]
[1643459833274,45.69115037,96.823,96.8,166.48175329]
[1643459833674,15.508,96.82,96.8,166.48175329]
[1643459833874,0.25,96.819,96.8,166.48175329]
[1643459834276,3.20669142,96.819,96.8,166.48175329]
[1643459834576,6.0,96.81,96.8,166.48175329]
[1643459834778,0.25,96.809,96.8,166.48175329]
[1643459834976,3.20669142,96.809,96.8,166.48175329]
[1643459835177,42.35956359,96.808,96.8,166.48175329]
[1643459835478,42.35956359,96.808,96.8,169.89826066]
[1643459835777,42.35956359,96.808,96.8,166.48175329]
[1643459837288,42.35956359,96.808,96.756,1.43769799]
[1643459837482,42.35956359,96.808,96.721,22.8079]
[1643459837483,2.95669142,96.807,96.755,1.43769799]
[1643459837681,3.20669142,96.807,96.746,1.43769799]
[1643459837881,3.20669142,96.807,96.745,1.43769799]
[1643459838083,2.95669142,96.806,96.745,1.43769799]
[1643459838281,0.25,96.805,96.745,1.43769799]
[1643459838508,0.25,96.805,96.741,1.43769799]
[1643459838682,2.95669142,96.804,96.74,1.43769799]
[1643459838883,0.25,96.803,96.741,1.43769799]
[1643459839082,0.25,96.803,96.734,7.149672]
[1643459839083,0.25,96.803,96.744,1.43769799]
[1643459839283,0.25,96.803,96.746,1.43769799]
[1643459839485,39.40287217,96.808,96.745,1.43769799]
[1643459839686,2.95669142,96.802,96.757,1.43769799]
[1643459839888,39.40287217,96.808,96.758,20.71057476]
[1643459840185,39.40287217,96.808,96.758,19.27287677]
[1643459840386,39.40287217,96.808,96.76,1.43769799]
[1643459840584,15.506,96.83,96.759,0.25]
[1643459840786,0.25,96.829,96.761,1.43769799]
[1643459840985,0.25,96.829,96.764,1.43769799]
[1643459841189,0.25,96.829,96.766,1.43769799]
[1643459841387,15.506,96.83,96.764,1.43769799]
[1643459841587,40.82787223,96.829,96.764,1.43769799]
[1643459842294,40.82787223,96.829,96.765,1.43769799]
[1643459842691,40.82787223,96.829,96.766,0.25]
[1643459842891,0.25,96.828,96.766,1.68769799]
[1643459843292,0.25,96.828,96.766,0.25]
[1643459843493,0.25,96.828,96.764,1.43769799]
[1643459843693,0.25,96.828,96.759,1.43769799]
[1643459843893,0.25,96.828,96.758,19.27287677]
[1643459844895,6.0,96.819,96.752,1.43769799]
[1643459845099,6.0,96.819,96.75,1.43769799]
[1643459845297,3.20669142,96.818,96.749,1.43769799]
[1643459845700,2.95669142,96.817,96.749,1.43769799]
[1643459845900,0.25,96.816,96.749,1.43769799]
[1643459846329,2.95669142,96.815,96.747,1.43769799]
[1643459846525,2.95669142,96.815,96.746,1.43769799]
[1643459846825,0.25,96.814,96.746,1.43769799]
[1643459847226,2.95669142,96.813,96.746,1.43769799]